[Event "*** Titled Tuesday Blitz"]
[Site "Chess.com"]
[Date "2018.07.03"]
[Round "4"]
[White "Zq1"]
[Black "Alopekos"]
[Result "1/2-1/2"]
[WhiteElo "2506"]
[BlackElo "2411"]
[TimeControl "180+2"]
[EndTime "13:50:08 PDT"]
[Termination "Game drawn by agreement"]

1. d4 {[%clk 0:03:01.9]} 1... Nf6 {[%clk 0:02:56.4]} 2. c4 {[%clk 0:03:02.2]}
2... e6 {[%clk 0:02:55.8]} 3. Nc3 {[%clk 0:03:02.5]} 3... d5 {[%clk 0:02:56.6]}
4. Bg5 {[%clk 0:03:02.4]} 4... dxc4 {[%clk 0:02:55.1]} 5. e3 {[%clk 0:03:00.8]}
5... c5 {[%clk 0:02:55.8]} 6. Nf3 {[%clk 0:02:56.8]} 6... Nc6 {[%clk 0:02:52.3]}
7. dxc5 {[%clk 0:02:50.9]} 7... Qxd1+ {[%clk 0:02:40.7]} 8. Rxd1 {[%clk
0:02:51.2]} 8... Bxc5 {[%clk 0:02:42.6]} 9. Bxc4 {[%clk 0:02:49.3]} 9... a6
{[%clk 0:02:36.3]} 10. Bxf6 {[%clk 0:02:42.2]} 10... gxf6 {[%clk 0:02:36.9]} 11.
Ne4 {[%clk 0:02:43.2]} 11... Be7 {[%clk 0:02:37.2]} 12. Nd6+ {[%clk 0:02:43.6]}
12... Bxd6 {[%clk 0:02:37.3]} 13. Rxd6 {[%clk 0:02:44.4]} 13... Ke7 {[%clk
0:02:38.1]} 14. Rd2 {[%clk 0:02:43.6]} 14... b5 {[%clk 0:02:37.7]} 15. Bd3
{[%clk 0:02:42.9]} 15... Bb7 {[%clk 0:02:31.5]} 16. Ke2 {[%clk 0:02:42.1]} 16...
Rag8 {[%clk 0:01:33]} 17. Rg1 {[%clk 0:02:41.3]} 17... Ne5 {[%clk 0:01:30.4]}
18. Nxe5 {[%clk 0:02:39.2]} 18... fxe5 {[%clk 0:01:32.3]} 19. g3 {[%clk
0:02:37.3]} 19... e4 {[%clk 0:01:01.3]} 20. Bc2 {[%clk 0:02:36.4]} 20... Bd5
{[%clk 0:00:58.6]} 21. Bb3 {[%clk 0:02:37.3]} 21... Bc6 {[%clk 0:00:24.3]} 22.
Rc1 {[%clk 0:02:35.5]} 22... Rc8 {[%clk 0:00:25.1]} 23. Rc5 {[%clk 0:02:29.1]}
23... Bd7 {[%clk 0:00:19.6]} 24. Rdc2 {[%clk 0:02:16.7]} 24... Kd6 {[%clk
0:00:16.5]} 25. Rxc8 {[%clk 0:02:14.4]} 25... Rxc8 {[%clk 0:00:18.4]} 26. Rxc8
{[%clk 0:02:14.1]} 26... Bxc8 {[%clk 0:00:20.3]} 27. Bc2 {[%clk 0:02:05.6]}
27... Bb7 {[%clk 0:00:18.2]} 28. Kf1 {[%clk 0:02:02.1]} 28... Bd5 {[%clk
0:00:15.9]} 29. a3 {[%clk 0:02:02.1]} 29... Kc5 {[%clk 0:00:16.2]} 30. Ke2
{[%clk 0:02:00.8]} 30... a5 {[%clk 0:00:10.8]} 31. Kd2 {[%clk 0:02:01.4]} 31...
b4 {[%clk 0:00:12]} 32. axb4+ {[%clk 0:02:00.4]} 32... Kxb4 {[%clk 0:00:10.6]}
33. Bd1 {[%clk 0:02:00.7]} 33... Bb3 {[%clk 0:00:06.9]} 34. Bh5 {[%clk
0:01:59.5]} 34... f5 {[%clk 0:00:03.7]} 35. h3 {[%clk 0:01:56.4]} 35... Bd5
{[%clk 0:00:04]} 36. Bf7 {[%clk 0:01:56.7]} 36... Kb3 {[%clk 0:00:04.9]} 37. Kc1
{[%clk 0:01:56.7]} 37... Kc4 {[%clk 0:00:06.2]} 38. Kc2 {[%clk 0:01:56.8]} 38...
Kb4 {[%clk 0:00:03.6]} 39. g4 {[%clk 0:01:47.5]} 39... fxg4 {[%clk 0:00:04.4]}
40. hxg4 {[%clk 0:01:48.1]} 40... h6 {[%clk 0:00:05.9]} 41. Bg8 {[%clk
0:01:47.3]} 41... Kc4 {[%clk 0:00:05.1]} 42. Bh7 {[%clk 0:01:45.1]} 42... Kb4
{[%clk 0:00:05.7]} 43. Bg6 {[%clk 0:01:46]} 43... Kc4 {[%clk 0:00:06.4]} 44. Be8
{[%clk 0:01:46.1]} 44... Kb4 {[%clk 0:00:07.4]} 45. Bd7 {[%clk 0:01:43.2]} 45...
Kc4 {[%clk 0:00:08]} 46. Be8 {[%clk 0:01:37.2]} 46... Kb4 {[%clk 0:00:09.2]}
1/2-1/2

[Event "*** Titled Tuesday Blitz"]
[Site "Chess.com"]
[Date "2018.07.03"]
[Round "4"]
[White "Parhamov"]
[Black "W_Amadeus"]
[Result "1-0"]
[WhiteElo "2763"]
[BlackElo "2590"]
[TimeControl "180+2"]
[EndTime "13:50:19 PDT"]
[Termination "Parhamov won by resignation"]

1. d4 {[%clk 0:02:43.3]} 1... d5 {[%clk 0:03:00.3]} 2. c4 {[%clk 0:02:44.1]}
2... e6 {[%clk 0:03:01.1]} 3. Nf3 {[%clk 0:02:44.8]} 3... Nf6 {[%clk 0:03:01.8]}
4. Nc3 {[%clk 0:02:45.8]} 4... c6 {[%clk 0:03:02.6]} 5. Bg5 {[%clk 0:02:44.9]}
5... h6 {[%clk 0:03:03.3]} 6. Bxf6 {[%clk 0:02:45.4]} 6... Qxf6 {[%clk
0:03:05.2]} 7. Qb3 {[%clk 0:02:46.5]} 7... Nd7 {[%clk 0:02:58.9]} 8. e4 {[%clk
0:02:47.1]} 8... dxe4 {[%clk 0:03:00]} 9. Nxe4 {[%clk 0:02:48.2]} 9... Qf4
{[%clk 0:03:00.4]} 10. Ned2 {[%clk 0:02:39.3]} 10... g6 {[%clk 0:02:31.4]} 11.
g3 {[%clk 0:02:39.9]} 11... Qc7 {[%clk 0:02:31]} 12. Bg2 {[%clk 0:02:40.9]}
12... Bg7 {[%clk 0:02:31.7]} 13. O-O {[%clk 0:02:42.5]} 13... O-O {[%clk
0:02:31.6]} 14. Rad1 {[%clk 0:02:41.3]} 14... b6 {[%clk 0:02:26.3]} 15. Rfe1
{[%clk 0:02:40.1]} 15... Bb7 {[%clk 0:02:24.4]} 16. Qc2 {[%clk 0:02:40.9]} 16...
c5 {[%clk 0:02:04.1]} 17. dxc5 {[%clk 0:02:35.4]} 17... Nxc5 {[%clk 0:01:59.4]}
18. b4 {[%clk 0:02:36.2]} 18... Nd7 {[%clk 0:01:58.4]} 19. Ne4 {[%clk
0:02:36.6]} 19... Ne5 {[%clk 0:01:40.4]} 20. Nxe5 {[%clk 0:02:30.1]} 20... Bxe5
{[%clk 0:01:42.3]} 21. c5 {[%clk 0:02:31.4]} 21... bxc5 {[%clk 0:00:44.5]} 22.
Nxc5 {[%clk 0:02:31.6]} 22... Bxg2 {[%clk 0:00:40.9]} 23. Kxg2 {[%clk
0:02:31.8]} 23... Bg7 {[%clk 0:00:37.2]} 24. Qe4 {[%clk 0:02:29.7]} 24... Rad8
{[%clk 0:00:21.9]} 25. a4 {[%clk 0:02:29.3]} 25... a5 {[%clk 0:00:17.3]} 26. Na6
{[%clk 0:02:29.9]} 26... Qb6 {[%clk 0:00:07.1]} 27. b5 {[%clk 0:02:30.8]} 27...
Rd4 {[%clk 0:00:07.2]} 28. Rxd4 {[%clk 0:02:31.4]} 28... Bxd4 {[%clk 0:00:09.1]}
29. Qf3 {[%clk 0:02:28.9]} 29... Rc8 {[%clk 0:00:06.2]} 30. h4 {[%clk
0:02:28.8]} 30... Rc3 {[%clk 0:00:05.3]} 31. Qf4 {[%clk 0:02:30]} 31... Rc2
{[%clk 0:00:03.9]} 32. Rf1 {[%clk 0:02:29.1]} 32... h5 {[%clk 0:00:03.8]} 33.
Qb8+ {[%clk 0:02:27.1]} 33... Kg7 {[%clk 0:00:04.2]} 34. Qf4 {[%clk 0:02:24.6]}
34... e5 {[%clk 0:00:05.1]} 35. Qf3 {[%clk 0:02:25.3]} 35... Ra2 {[%clk
0:00:04.5]} 36. Qb3 {[%clk 0:02:24.7]} 36... Rb2 {[%clk 0:00:03.7]} 37. Qd5
{[%clk 0:02:24.2]} 37... Qf6 {[%clk 0:00:02.5]} 38. Qf3 {[%clk 0:02:24.4]} 38...
Qxf3+ {[%clk 0:00:03.2]} 39. Kxf3 {[%clk 0:02:25.6]} 39... Ra2 {[%clk
0:00:04.7]} 40. Ke4 {[%clk 0:02:23.5]} 40... Rxa4 {[%clk 0:00:05.6]} 41. Kd5
{[%clk 0:02:25.1]} 41... Ra2 {[%clk 0:00:05.3]} 42. f4 {[%clk 0:02:26.2]} 42...
Rb2 {[%clk 0:00:03.4]} 43. fxe5 {[%clk 0:02:27]} 43... Be3 {[%clk 0:00:04.6]}
44. Nc7 {[%clk 0:02:22.2]} 44... Bb6 {[%clk 0:00:04.4]} 45. Ne8+ {[%clk
0:02:23.2]} 45... Kg8 {[%clk 0:00:04.4]} 46. Nd6 {[%clk 0:02:24.9]} 46... Bc7
{[%clk 0:00:05.2]} 47. Kc6 {[%clk 0:02:23.1]} 47... Bxd6 {[%clk 0:00:05.8]} 48.
exd6 {[%clk 0:02:24.4]} 48... Kf8 {[%clk 0:00:06.9]} 49. Re1 {[%clk 0:02:20.1]}
49... Rc2+ {[%clk 0:00:06.8]} 50. Kd7 {[%clk 0:02:21.2]} 50... a4 {[%clk
0:00:06.4]} 51. Re8+ {[%clk 0:02:19.6]} 51... Kg7 {[%clk 0:00:07.7]} 52. Ra8
{[%clk 0:02:21.5]} 52... Rc5 {[%clk 0:00:07]} 53. b6 {[%clk 0:02:22.4]} 53...
Rb5 {[%clk 0:00:07.7]} 54. Kc6 {[%clk 0:02:23.8]} 54... Rb4 {[%clk 0:00:08.8]}
55. b7 {[%clk 0:02:24.4]} 1-0

[Event "*** Titled Tuesday Blitz"]
[Site "Chess.com"]
[Date "2018.07.03"]
[Round "4"]
[White "HanSchut"]
[Black "matiss90"]
[Result "0-1"]
[WhiteElo "2267"]
[BlackElo "2353"]
[TimeControl "180+2"]
[EndTime "13:50:19 PDT"]
[Termination "matiss90 won by resignation"]

1. e4 {[%clk 0:03:01.9]} 1... c5 {[%clk 0:03:00.7]} 2. Nf3 {[%clk 0:03:02.8]}
2... d6 {[%clk 0:03:01.6]} 3. d4 {[%clk 0:03:04]} 3... cxd4 {[%clk 0:03:03.5]}
4. Nxd4 {[%clk 0:03:05.7]} 4... Nf6 {[%clk 0:03:05.4]} 5. f3 {[%clk 0:03:07.1]}
5... g6 {[%clk 0:03:06.3]} 6. c4 {[%clk 0:03:08.2]} 6... Bg7 {[%clk 0:03:07.7]}
7. Be3 {[%clk 0:03:09.7]} 7... O-O {[%clk 0:03:08.9]} 8. Qd2 {[%clk 0:03:10.9]}
8... Nc6 {[%clk 0:03:10.1]} 9. Nc3 {[%clk 0:03:12.2]} 9... Be6 {[%clk
0:02:55.7]} 10. Rc1 {[%clk 0:03:12.1]} 10... Ne5 {[%clk 0:02:56.1]} 11. b3
{[%clk 0:03:13]} 11... a6 {[%clk 0:02:57.1]} 12. Be2 {[%clk 0:03:12.9]} 12...
Rc8 {[%clk 0:02:58.1]} 13. O-O {[%clk 0:03:12.4]} 13... Bd7 {[%clk 0:02:49.4]}
14. Rfd1 {[%clk 0:03:06.2]} 14... Nh5 {[%clk 0:02:45.8]} 15. f4 {[%clk
0:03:04.7]} 15... Ng4 {[%clk 0:02:46.8]} 16. Bxg4 {[%clk 0:02:58.4]} 16... Bxg4
{[%clk 0:02:48.7]} 17. Rf1 {[%clk 0:02:56.2]} 17... e5 {[%clk 0:02:47.9]} 18.
Nf3 {[%clk 0:02:49.4]} 18... Bxf3 {[%clk 0:02:38.8]} 19. Rxf3 {[%clk 0:02:47.4]}
19... exf4 {[%clk 0:02:39.7]} 20. Bxf4 {[%clk 0:02:42.1]} 20... Nxf4 {[%clk
0:02:40.1]} 21. Qxf4 {[%clk 0:02:34.7]} 21... b5 {[%clk 0:02:37.3]} 22. cxb5
{[%clk 0:02:19.3]} 22... axb5 {[%clk 0:02:39.2]} 23. Nd5 {[%clk 0:02:16.6]}
23... Rxc1+ {[%clk 0:02:36.3]} 24. Qxc1 {[%clk 0:02:16.6]} 24... Qa8 {[%clk
0:02:28.5]} 25. Qc2 {[%clk 0:02:06.9]} 25... Qa7+ {[%clk 0:02:22.9]} 26. Kh1
{[%clk 0:01:49.7]} 26... Qd4 {[%clk 0:02:22.6]} 27. Rf1 {[%clk 0:01:43.5]} 27...
h5 {[%clk 0:02:13.3]} 28. Qf2 {[%clk 0:01:36.7]} 28... Qxe4 {[%clk 0:02:02.3]}
29. Nf6+ {[%clk 0:01:09.6]} 29... Bxf6 {[%clk 0:02:02.4]} 30. Qxf6 {[%clk
0:01:11.5]} 30... d5 {[%clk 0:02:00.5]} 31. h3 {[%clk 0:01:07.6]} 31... b4
{[%clk 0:02:01.1]} 32. Rd1 {[%clk 0:01:02.7]} 32... Rc8 {[%clk 0:01:54.4]} 33.
Rd4 {[%clk 0:00:54.6]} 33... Rc1+ {[%clk 0:01:48.7]} 34. Kh2 {[%clk 0:00:55.7]}
34... Qe1 {[%clk 0:01:48.9]} 35. Qd8+ {[%clk 0:00:38.4]} 35... Kg7 {[%clk
0:01:47.8]} 36. Qxd5 {[%clk 0:00:39.5]} 36... Qg1+ {[%clk 0:01:44.7]} 37. Kg3
{[%clk 0:00:39.9]} 37... Rc3+ {[%clk 0:01:30.8]} 38. Rd3 {[%clk 0:00:40.6]}
38... h4+ {[%clk 0:01:15.1]} 39. Kxh4 {[%clk 0:00:38.7]} 39... Qf2+ {[%clk
0:01:14.4]} 40. g3 {[%clk 0:00:20.4]} 40... Qf6+ {[%clk 0:01:06.3]} 41. Kg4
{[%clk 0:00:21.4]} 41... Qf5+ {[%clk 0:01:06.7]} 0-1

[Event "*** Titled Tuesday Blitz"]
[Site "Chess.com"]
[Date "2018.07.03"]
[Round "4"]
[White "dinesh501"]
[Black "Ravan_02"]
[Result "0-1"]
[WhiteElo "1961"]
[BlackElo "2478"]
[TimeControl "180+2"]
[EndTime "13:50:21 PDT"]
[Termination "Ravan_02 won by resignation"]

1. e4 {[%clk 0:02:15.7]} 1... e6 {[%clk 0:02:57.5]} 2. d4 {[%clk 0:02:07.2]}
2... d5 {[%clk 0:02:59.4]} 3. Nc3 {[%clk 0:02:04.3]} 3... Nf6 {[%clk 0:02:58.6]}
4. e5 {[%clk 0:02:04.7]} 4... Nfd7 {[%clk 0:02:58.6]} 5. Qg4 {[%clk 0:02:06.2]}
5... c5 {[%clk 0:02:52.7]} 6. dxc5 {[%clk 0:02:03.8]} 6... Nxe5 {[%clk
0:02:48.5]} 7. Qg3 {[%clk 0:01:58.4]} 7... Nbc6 {[%clk 0:02:46.8]} 8. Bf4 {[%clk
0:01:53.4]} 8... Ng6 {[%clk 0:02:40.5]} 9. Bc7 {[%clk 0:01:52.3]} 9... Qh4
{[%clk 0:02:39.6]} 10. Nf3 {[%clk 0:01:45.2]} 10... Qxg3 {[%clk 0:02:35.5]} 11.
Bxg3 {[%clk 0:01:47.1]} 11... Bxc5 {[%clk 0:02:33.1]} 12. Nb5 {[%clk 0:01:45.8]}
12... Bb6 {[%clk 0:02:10.4]} 13. Nc7+ {[%clk 0:01:42.6]} 13... Bxc7 {[%clk
0:02:10.7]} 14. Bxc7 {[%clk 0:01:44.5]} 14... Ke7 {[%clk 0:02:10.1]} 15. Bg3
{[%clk 0:01:43.7]} 15... e5 {[%clk 0:02:02.7]} 16. O-O-O {[%clk 0:01:44.3]}
16... d4 {[%clk 0:01:59.9]} 17. Bb5 {[%clk 0:01:40.7]} 17... f6 {[%clk
0:01:58.5]} 18. Rhe1 {[%clk 0:01:41.1]} 18... Be6 {[%clk 0:01:58.2]} 19. h4
{[%clk 0:01:35.3]} 19... h5 {[%clk 0:01:56.6]} 20. Bd3 {[%clk 0:01:34.3]} 20...
Kf7 {[%clk 0:01:53.1]} 21. Be4 {[%clk 0:01:32.7]} 21... Rac8 {[%clk 0:01:52.4]}
22. Kb1 {[%clk 0:01:31.9]} 22... Rhd8 {[%clk 0:01:34.1]} 23. a3 {[%clk
0:01:31.2]} 23... Bd5 {[%clk 0:01:27.4]} 24. Bxd5+ {[%clk 0:01:30.2]} 24... Rxd5
{[%clk 0:01:27.1]} 25. Rd2 {[%clk 0:01:30.5]} 25... Na5 {[%clk 0:01:18.8]} 26.
Rd3 {[%clk 0:01:28.1]} 26... Rb5 {[%clk 0:01:16.1]} 27. Nd2 {[%clk 0:01:21.4]}
27... Ne7 {[%clk 0:01:04.7]} 28. f4 {[%clk 0:01:18.6]} 28... Ng6 {[%clk
0:00:43.8]} 29. fxe5 {[%clk 0:01:17.5]} 29... fxe5 {[%clk 0:00:43.8]} 30. Ne4
{[%clk 0:01:14.9]} 30... Nc4 {[%clk 0:00:41.3]} 31. b4 {[%clk 0:01:09.3]} 31...
Kg8 {[%clk 0:00:34.1]} 32. Nc5 {[%clk 0:01:01.4]} 32... Rcxc5 {[%clk 0:00:32.9]}
33. Ka2 {[%clk 0:01:00]} 33... Rc8 {[%clk 0:00:30.2]} 34. Kb3 {[%clk 0:00:59.5]}
34... Ne3 {[%clk 0:00:29.3]} 35. c3 {[%clk 0:00:58.4]} 35... Nf5 {[%clk
0:00:25.9]} 36. c4 {[%clk 0:00:56.2]} 36... Rb6 {[%clk 0:00:21.2]} 37. Bxe5
{[%clk 0:00:56.5]} 37... Re6 {[%clk 0:00:20.3]} 0-1

[Event "*** Titled Tuesday Blitz"]
[Site "Chess.com"]
[Date "2018.07.03"]
[Round "4"]
[White "evgenysharapov"]
[Black "Mbneu"]
[Result "1/2-1/2"]
[WhiteElo "2401"]
[BlackElo "2240"]
[TimeControl "180+2"]
[EndTime "13:50:23 PDT"]
[Termination "Game drawn by agreement"]

1. e4 {[%clk 0:03:01.9]} 1... e5 {[%clk 0:03:00.8]} 2. Nf3 {[%clk 0:03:02.2]}
2... Nc6 {[%clk 0:03:01.1]} 3. Bb5 {[%clk 0:03:02.5]} 3... Bc5 {[%clk
0:03:01.4]} 4. Nxe5 {[%clk 0:02:57.4]} 4... Bxf2+ {[%clk 0:02:56.5]} 5. Kxf2
{[%clk 0:02:57.7]} 5... Nxe5 {[%clk 0:02:57.6]} 6. Nc3 {[%clk 0:02:48.7]} 6...
c6 {[%clk 0:02:50.1]} 7. Be2 {[%clk 0:02:48.4]} 7... d5 {[%clk 0:02:36]} 8. d4
{[%clk 0:02:44.2]} 8... Ng6 {[%clk 0:02:36.4]} 9. exd5 {[%clk 0:02:39.5]} 9...
cxd5 {[%clk 0:02:32.9]} 10. Rf1 {[%clk 0:02:30.8]} 10... N8e7 {[%clk 0:02:31.6]}
11. Kg1 {[%clk 0:02:30.2]} 11... O-O {[%clk 0:02:31.8]} 12. Bd3 {[%clk
0:02:19.4]} 12... Be6 {[%clk 0:02:27.6]} 13. Kh1 {[%clk 0:02:19.3]} 13... Qd7
{[%clk 0:02:25]} 14. Be3 {[%clk 0:02:15.6]} 14... Rae8 {[%clk 0:02:23.4]} 15.
Qd2 {[%clk 0:02:12.6]} 15... a6 {[%clk 0:02:23.1]} 16. Rae1 {[%clk 0:02:11.7]}
16... Nf5 {[%clk 0:02:09.3]} 17. Bg1 {[%clk 0:02:08.7]} 17... Nd6 {[%clk
0:02:08]} 18. h3 {[%clk 0:02:01.6]} 18... f5 {[%clk 0:02:08.3]} 19. Bh2 {[%clk
0:01:59.7]} 19... Ne4 {[%clk 0:02:08.1]} 20. Bxe4 {[%clk 0:01:54.6]} 20... fxe4
{[%clk 0:02:07.2]} 21. Qe3 {[%clk 0:01:42.8]} 21... Nh4 {[%clk 0:01:57]} 22. Be5
{[%clk 0:01:37]} 22... Nf5 {[%clk 0:01:19.6]} 23. Qg5 {[%clk 0:01:28.3]} 23...
h6 {[%clk 0:01:19.2]} 24. Qg6 {[%clk 0:01:21]} 24... Qf7 {[%clk 0:01:18.7]} 25.
Qxf7+ {[%clk 0:01:17.1]} 25... Rxf7 {[%clk 0:01:20.6]} 26. Kg1 {[%clk
0:01:07.1]} 26... Ne7 {[%clk 0:01:16]} 27. Rxf7 {[%clk 0:01:04.6]} 27... Bxf7
{[%clk 0:01:16.3]} 28. Bf4 {[%clk 0:00:56.4]} 28... Nf5 {[%clk 0:01:11.9]} 29.
Be5 {[%clk 0:00:53.9]} 29... Ne7 {[%clk 0:01:11.1]} 30. Bf4 {[%clk 0:00:39.5]}
30... Nf5 {[%clk 0:01:10.6]} 31. Be3 {[%clk 0:00:40.2]} 31... b5 {[%clk
0:01:01.8]} 32. a3 {[%clk 0:00:38.5]} 32... Nd6 {[%clk 0:01:00.8]} 33. Nd1
{[%clk 0:00:33.5]} 33... Rc8 {[%clk 0:00:50.9]} 34. c3 {[%clk 0:00:33.8]} 34...
Nc4 {[%clk 0:00:48.4]} 35. Bc1 {[%clk 0:00:33.6]} 35... Bh5 {[%clk 0:00:46.3]}
36. Ne3 {[%clk 0:00:33.7]} 36... Nxe3 {[%clk 0:00:46.6]} 37. Bxe3 {[%clk
0:00:34.1]} 37... Rf8 {[%clk 0:00:48.1]} 38. Rf1 {[%clk 0:00:31.8]} 38... Rxf1+
{[%clk 0:00:48.3]} 39. Kxf1 {[%clk 0:00:32.7]} 39... Kf7 {[%clk 0:00:50.2]}
1/2-1/2

[Event "*** Titled Tuesday Blitz"]
[Site "Chess.com"]
[Date "2018.07.03"]
[Round "4"]
[White "BillForster"]
[Black "morphy1984"]
[Result "0-1"]
[WhiteElo "1701"]
[BlackElo "2502"]
[TimeControl "180+2"]
[EndTime "13:50:39 PDT"]
[Termination "morphy1984 won by resignation"]

1. d4 {[%clk 0:03:01.9]} 1... Nf6 {[%clk 0:02:57.4]} 2. c4 {[%clk 0:03:01.2]}
2... g6 {[%clk 0:02:57.1]} 3. Nc3 {[%clk 0:02:59.7]} 3... Bg7 {[%clk 0:02:57.3]}
4. e4 {[%clk 0:03:00.1]} 4... d6 {[%clk 0:02:57.6]} 5. Bd3 {[%clk 0:02:59.7]}
5... O-O {[%clk 0:02:57.1]} 6. Nge2 {[%clk 0:03:00.1]} 6... e5 {[%clk
0:02:56.3]} 7. d5 {[%clk 0:02:59.8]} 7... a5 {[%clk 0:02:56.8]} 8. O-O {[%clk
0:02:58.7]} 8... Na6 {[%clk 0:02:57]} 9. Bc2 {[%clk 0:02:35]} 9... Nh5 {[%clk
0:02:32.3]} 10. Be3 {[%clk 0:02:26.7]} 10... Bd7 {[%clk 0:02:21.8]} 11. a3
{[%clk 0:02:12.4]} 11... Qe8 {[%clk 0:02:19.5]} 12. Rb1 {[%clk 0:02:08.5]} 12...
f5 {[%clk 0:02:17.6]} 13. exf5 {[%clk 0:02:07.5]} 13... gxf5 {[%clk 0:02:18]}
14. f4 {[%clk 0:02:04.7]} 14... exf4 {[%clk 0:02:15.2]} 15. Bxf4 {[%clk
0:01:51.4]} 15... Nxf4 {[%clk 0:02:13.4]} 16. Nxf4 {[%clk 0:01:28]} 16... Nc5
{[%clk 0:02:01.3]} 17. Kh1 {[%clk 0:01:20.1]} 17... a4 {[%clk 0:01:57.8]} 18.
Qe2 {[%clk 0:00:59.3]} 18... Bxc3 {[%clk 0:01:37.6]} 19. bxc3 {[%clk 0:00:51.6]}
19... Qxe2 {[%clk 0:01:37.8]} 20. Nxe2 {[%clk 0:00:49.6]} 20... Rae8 {[%clk
0:01:38.2]} 21. Nd4 {[%clk 0:00:39.3]} 21... f4 {[%clk 0:01:29.9]} 22. Rbe1
{[%clk 0:00:28.5]} 22... Re5 {[%clk 0:01:18.5]} 23. Nb5 {[%clk 0:00:23.4]} 23...
Bxb5 {[%clk 0:01:14.9]} 24. cxb5 {[%clk 0:00:22.7]} 24... Rxd5 {[%clk
0:01:06.5]} 25. Re7 {[%clk 0:00:21.4]} 25... Rf7 {[%clk 0:01:02.1]} 26. Re8+
{[%clk 0:00:20.7]} 26... Kg7 {[%clk 0:01:02.4]} 27. Rfe1 {[%clk 0:00:18.5]}
27... Rd2 {[%clk 0:00:58]} 28. Bf5 {[%clk 0:00:16]} 28... Rxf5 {[%clk
0:00:57.5]} 29. R1e7+ {[%clk 0:00:15.5]} 29... Rf7 {[%clk 0:00:57.5]} 30. Re1
{[%clk 0:00:09.1]} 30... Nd3 {[%clk 0:00:46.2]} 31. Rf1 {[%clk 0:00:07.3]} 31...
Rd1 {[%clk 0:00:41.7]} 32. Kg1 {[%clk 0:00:06.4]} 32... Rxf1+ {[%clk 0:00:34.4]}
33. Kxf1 {[%clk 0:00:06.7]} 33... Ne5 {[%clk 0:00:30.7]} 34. Ke2 {[%clk
0:00:05.8]} 34... Nc4 {[%clk 0:00:30.8]} 35. Kd3 {[%clk 0:00:04.5]} 35... Nxa3
{[%clk 0:00:31.3]} 0-1

[Event "*** Titled Tuesday Blitz"]
[Site "Chess.com"]
[Date "2018.07.03"]
[Round "4"]
[White "LuisFSiles"]
[Black "Superfelix"]
[Result "0-1"]
[WhiteElo "2222"]
[BlackElo "2366"]
[TimeControl "180+2"]
[EndTime "13:50:47 PDT"]
[Termination "Superfelix won by checkmate"]

1. d4 {[%clk 0:03:00.6]} 1... Nf6 {[%clk 0:03:00.5]} 2. c4 {[%clk 0:02:58.6]}
2... g6 {[%clk 0:03:01.6]} 3. Nc3 {[%clk 0:02:59.1]} 3... Bg7 {[%clk 0:03:02.8]}
4. e4 {[%clk 0:03:00]} 4... d6 {[%clk 0:03:04.1]} 5. Nf3 {[%clk 0:03:00.8]} 5...
O-O {[%clk 0:03:05.6]} 6. Be2 {[%clk 0:03:02]} 6... Na6 {[%clk 0:03:06.9]} 7.
Bf4 {[%clk 0:03:00.3]} 7... Nh5 {[%clk 0:03:04.8]} 8. Bg5 {[%clk 0:02:58.1]}
8... h6 {[%clk 0:03:05.5]} 9. Be3 {[%clk 0:02:58.8]} 9... e5 {[%clk 0:03:03.5]}
10. Qd2 {[%clk 0:02:52.7]} 10... Kh7 {[%clk 0:03:00.9]} 11. d5 {[%clk
0:02:47.6]} 11... Qe7 {[%clk 0:02:54.1]} 12. g4 {[%clk 0:02:20.1]} 12... Bxg4
{[%clk 0:02:47.6]} 13. Ng5+ {[%clk 0:02:21]} 13... hxg5 {[%clk 0:02:48.9]} 14.
Bxg4 {[%clk 0:02:22.1]} 14... Nf4 {[%clk 0:02:48]} 15. h4 {[%clk 0:02:13.1]}
15... gxh4 {[%clk 0:02:46.6]} 16. Bxf4 {[%clk 0:02:10.2]} 16... exf4 {[%clk
0:02:48.5]} 17. Qxf4 {[%clk 0:02:08.7]} 17... Bh6 {[%clk 0:02:48.6]} 18. Qh2
{[%clk 0:02:00.6]} 18... Nc5 {[%clk 0:02:39.1]} 19. Qxh4 {[%clk 0:01:50.3]}
19... Qxh4 {[%clk 0:02:38.3]} 20. Rxh4 {[%clk 0:01:52.2]} 20... Kg7 {[%clk
0:02:29.7]} 21. Kf1 {[%clk 0:01:36.7]} 21... Bg5 {[%clk 0:02:24.5]} 22. Rh1
{[%clk 0:01:31.1]} 22... Rae8 {[%clk 0:01:41.9]} 23. f3 {[%clk 0:01:17.2]} 23...
f5 {[%clk 0:01:23.4]} 24. exf5 {[%clk 0:01:14.7]} 24... gxf5 {[%clk 0:01:25.3]}
25. Bh3 {[%clk 0:01:06.2]} 25... Re3 {[%clk 0:01:25.9]} 26. Kg2 {[%clk
0:01:04.9]} 26... Nd3 {[%clk 0:01:22.9]} 27. Nb5 {[%clk 0:00:54.5]} 27... Re2+
{[%clk 0:01:15.1]} 28. Kf1 {[%clk 0:00:40.3]} 28... Rf2+ {[%clk 0:01:14.8]} 29.
Kg1 {[%clk 0:00:40.7]} 29... Be3 {[%clk 0:01:13.6]} 30. Rh2 {[%clk 0:00:33.8]}
30... Rxf3+ {[%clk 0:00:55.4]} 31. Kh1 {[%clk 0:00:33.2]} 31... Kf6 {[%clk
0:00:50.5]} 32. Bg2 {[%clk 0:00:29.1]} 32... Nf2+ {[%clk 0:00:47.7]} 33. Kg1
{[%clk 0:00:28.3]} 33... Ng4+ {[%clk 0:00:41.8]} 34. Kh1 {[%clk 0:00:26.7]}
34... Nxh2 {[%clk 0:00:41.5]} 35. Bxf3 {[%clk 0:00:21.6]} 35... Nxf3 {[%clk
0:00:41.8]} 36. Nxc7 {[%clk 0:00:22]} 36... Rg8 {[%clk 0:00:25.8]} 37. Nb5
{[%clk 0:00:20.3]} 37... Ke5 {[%clk 0:00:25.4]} 38. Rf1 {[%clk 0:00:19.8]} 38...
Kf4 {[%clk 0:00:23.1]} 39. Nxd6 {[%clk 0:00:17.2]} 39... Rh8+ {[%clk 0:00:24.2]}
40. Kg2 {[%clk 0:00:18.4]} 40... Rh2# {[%clk 0:00:25.3]} 0-1